[Event "ESTCC 50 2019"]
[Site "Mali Losinj"]
[Date "2019.09.20"]
[Round "3.2"]
[White "Zelcic, Robert"]
[Black "Gleizerov, Evgeny"]
[Result "1/2-1/2"]
[ECO "C14"]
[WhiteElo "2503"]
[BlackElo "2503"]
[Annotator "ChessBase"]
[PlyCount "69"]
[EventDate "2019.09.18"]
[EventType "team-tourn"]
[EventCountry "CRO"]
[SourceTitle "playchess.com"]
[Source "ChessBase"]
[SourceQuality "1"]
[WhiteTeam "Croatia"]
[BlackTeam "Russia"]
[WhiteTeamCountry "CRO"]
[BlackTeamCountry "RUS"]
[TimeControl "40/5400+30:1800+30"]

1. e4 {[%emt 0:00:30]} e6 {[%emt 0:00:30]} 2. d4 {[%emt 0:00:00]} d5 {[%emt 0:00:00]} 3. Nc3 {[%emt 0:00:00]} Nf6 {[%emt 0:00:00]} 4. Bg5 {[%emt 0:00:00]} Be7 {[%emt 0:00:00]} 5. e5 {[%emt 0:00:00]} Nfd7 {[%emt 0:00:00]} 6. h4 {[%emt 0:00:00]} Nc6 {[%emt 0:00:30]} 7. Qd2 {[%emt 0:00:00]} h6 {[%emt 0:00:00]} 8. Bxe7 {[%emt 0:00:30]} Nxe7 {[%emt 0:00:00]} 9. f4 {[%emt 0:00:00]} a6 {[%emt 0:00:00]} 10. Nf3 {[%emt 0:05:00]} c5 {[%emt 0:00:00]} 11. dxc5 {[%emt 0:05:30]} Nxc5 {[%emt 0:00:30]} 12. Qf2 {[%emt 0:00:30]} Qa5 {[%emt 0:21:30]} 13. Bb5+ {[%emt 0:31:30]} axb5 {[%emt 0:00:30]} 14. Qxc5 {[%emt 0:00:30]} Bd7 {[%emt 0:08:30]} 15. Qf2 {[%emt 0:02:30]} b4 {[%emt 0:01:30]} 16. Nd1 {[%emt 0:00:30]} Bb5 {[%emt 0:05:30]} 17. Nd4 {[%emt 0:00:30]} Nc6 {[%emt 0:01:30]} 18. Nb3 {[%emt 0:03:30]} Qa7 {[%emt 0:01:30]} 19. Qxa7 {[%emt 0:00:30]} Rxa7 {[%emt 0:00:30]} 20. a3 {[%emt 0:00:30]} bxa3 {[%emt 0:05:30]} 21. Rxa3 {[%emt 0:00:30]} Rxa3 {[%emt 0:00:30]} 22. bxa3 {[%emt 0:00:30]} Ke7 {[%emt 0:02:30]} 23. Nc3 {[%emt 0:04:30]} Bc4 {[%emt 0:01:30]} 24. a4 {[%emt 0:03:30]} Ra8 {[%emt 0:11:30]} 25. Nd2 {[%emt 0:15:30]} d4 {[%emt 0:01:30]} 26. Nxc4 {[%emt 0:01:30]} dxc3 {[%emt 0:00:30]} 27. Rh3 {[%emt 0:00:30]} Rxa4 {[%emt 0:03:30]} 28. Rxc3 {[%emt 0:00:00]} g5 {[%emt 0:03:30]} 29. fxg5 {[%emt 0:04:00]} hxg5 {[%emt 0:00:30]} 30. hxg5 {[%emt 0:00:00]} Nxe5 {[%emt 0:06:30]} 31. Nxe5 {[%emt 0:00:00]} Re4+ {[%emt 0:00:30]} 32. Kf2 {[%emt 0:00:30]} Rxe5 {[%emt 0:00:00]} 33. Rc7+ {[%emt 0:00:00]} Ke8 {[%emt 0:00:00]} 34. g6 {[%emt 0:00:00]} fxg6 {[%emt 0:00:00]} 35. Rxb7 {[%emt 0:01:30]} 1/2-1/2

[Event "ESTCC 50 2019"]
[Site "Mali Losinj"]
[Date "2019.09.20"]
[Round "3.3"]
[White "Shcherbakov, Ruslan"]
[Black "Kurajica, Bojan"]
[Result "1-0"]
[ECO "B43"]
[WhiteElo "2516"]
[BlackElo "2493"]
[Annotator "ChessBase"]
[PlyCount "45"]
[EventDate "2019.09.18"]
[EventType "team-tourn"]
[EventCountry "CRO"]
[SourceTitle "playchess.com"]
[Source "ChessBase"]
[SourceQuality "1"]
[WhiteTeam "Russia"]
[BlackTeam "Croatia"]
[WhiteTeamCountry "RUS"]
[BlackTeamCountry "CRO"]
[TimeControl "40/5400+30:1800+30"]

1. e4 {[%emt 0:02:30]} c5 {[%emt 0:00:30]} 2. Nf3 {[%emt 0:00:30]} e6 {[%emt 0:00:00]} 3. d4 {[%emt 0:00:30]} cxd4 {[%emt 0:00:00]} 4. Nxd4 {[%emt 0:00:30]} a6 {[%emt 0:00:30]} 5. Nc3 {[%emt 0:02:30]} Qc7 {[%emt 0:00:00]} 6. Bd3 {[%emt 0:02:30]} Bc5 {[%emt 0:02:00]} 7. Be3 {[%emt 0:07:30]} Nf6 {[%emt 0:02:30]} 8. f4 {[%emt 0:17:30]} Bxd4 {[%emt 0:09:30]} 9. Bxd4 {[%emt 0:00:30]} Qxf4 {[%emt 0:00:30]} 10. Rf1 {[%emt 0:07:30]} Qxh2 {[%emt 0:12:30]} 11. e5 {[%emt 0:07:30]} Qg3+ {[%emt 0:14:30]} 12. Rf2 {[%emt 0:01:30]} Ng4 {[%emt 0:03:30]} 13. Ne4 {[%emt 0:00:30]} Nxf2 {[%emt 0:00:30]} 14. Bxf2 {[%emt 0:01:30]} Qxe5 {[%emt 0:00:30]} 15. Bg3 {[%emt 0:00:00]} Qa5+ {[%emt 0:13:30]} 16. b4 {[%emt 0:01:00]} Qxb4+ {[%emt 0:00:30]} 17. c3 {[%emt 0:00:30]} Qa5 {[%emt 0:00:30]} 18. Bd6 {[%emt 0:14:30]} h5 {[%emt 0:11:30]} 19. Qf3 {[%emt 0:04:30]} f5 {[%emt 0:08:01]} 20. Qg3 {[%emt 0:00:30]} Kf7 {[%emt 0:00:14]} 21. Be5 {[%emt 0:05:30]} Rg8 {[%emt 0:00:26]} 22. Nd6+ {[%emt 0:00:30]} Kf8 {[%emt 0:00:07]} 23. Nc4 {[%emt 0:00:30]} 1-0

[Event "ESTCC 50 2019"]
[Site "Mali Losinj"]
[Date "2019.09.20"]
[Round "3.4"]
[White "Fercec, Nenad"]
[Black "Ibragimov, Ildar"]
[Result "1/2-1/2"]
[ECO "C77"]
[WhiteElo "2439"]
[BlackElo "2537"]
[Annotator "ChessBase"]
[PlyCount "57"]
[EventDate "2019.09.18"]
[EventType "team-tourn"]
[EventCountry "CRO"]
[SourceTitle "playchess.com"]
[Source "ChessBase"]
[SourceQuality "1"]
[WhiteTeam "Croatia"]
[BlackTeam "Russia"]
[WhiteTeamCountry "CRO"]
[BlackTeamCountry "RUS"]
[TimeControl "40/5400+30:1800+30"]

1. e4 {[%emt 0:00:30]} e5 {[%emt 0:00:30]} 2. Nf3 {[%emt 0:00:00]} Nc6 {[%emt 0:00:30]} 3. Bb5 {[%emt 0:00:00]} a6 {[%emt 0:00:00]} 4. Ba4 {[%emt 0:00:30]} Nf6 {[%emt 0:00:00]} 5. d3 {[%emt 0:00:30]} b5 {[%emt 0:01:30]} 6. Bb3 {[%emt 0:00:00]} Be7 {[%emt 0:00:30]} 7. Nc3 {[%emt 0:01:00]} d6 {[%emt 0:04:30]} 8. a3 {[%emt 0:01:30]} O-O {[%emt 0:03:30]} 9. h3 {[%emt 0:03:30]} Be6 {[%emt 0:12:30]} 10. Nd5 {[%emt 0:08:30]} Na5 {[%emt 0:11:30]} 11. Nxf6+ {[%emt 0:11:30]} Bxf6 {[%emt 0:00:00]} 12. Bxe6 {[%emt 0:00:30]} fxe6 {[%emt 0:00:00]} 13. b4 {[%emt 0:00:30]} Nc6 {[%emt 0:02:30]} 14. O-O {[%emt 0:00:30]} a5 {[%emt 0:05:30]} 15. Bd2 {[%emt 0:03:30]} axb4 {[%emt 0:06:30]} 16. axb4 {[%emt 0:00:30]} d5 {[%emt 0:00:30]} 17. c3 {[%emt 0:02:30]} Ne7 {[%emt 0:08:30]} 18. Rxa8 {[%emt 0:02:30]} Qxa8 {[%emt 0:00:30]} 19. Ng5 {[%emt 0:00:00]} Bxg5 {[%emt 0:02:30]} 20. Bxg5 {[%emt 0:00:00]} Ng6 {[%emt 0:00:00]} 21. Qg4 {[%emt 0:00:30]} Qc6 {[%emt 0:01:00]} 22. g3 {[%emt 0:01:30]} dxe4 {[%emt 0:11:30]} 23. dxe4 {[%emt 0:01:30]} Qxc3 {[%emt 0:00:30]} 24. Qxe6+ {[%emt 0:01:30]} Kh8 {[%emt 0:00:30]} 25. Be7 {[%emt 0:17:30]} Nxe7 {[%emt 0:00:30]} 26. Qxe7 {[%emt 0:01:30]} Kg8 {[%emt 0:00:30]} 27. Qe6+ {[%emt 0:00:30]} Kh8 {[%emt 0:00:30]} 28. Qe7 {[%emt 0:00:30]} Kg8 {[%emt 0:00:00]} 29. Qe6+ {[%emt 0:00:30]} 1/2-1/2

[Event "ESTCC 50 2019"]
[Site "Mali Losinj"]
[Date "2019.09.20"]
[Round "3.5"]
[White "Blatny, Pavel"]
[Black "Mikhalchishin, Adrian"]
[Result "0-1"]
[ECO "A01"]
[WhiteElo "2325"]
[BlackElo "2465"]
[Annotator "ChessBase"]
[PlyCount "86"]
[EventDate "2019.09.18"]
[EventType "team-tourn"]
[EventCountry "CRO"]
[SourceTitle "playchess.com"]
[Source "ChessBase"]
[SourceQuality "1"]
[WhiteTeam "Czech Republic"]
[BlackTeam "Slovenia"]
[WhiteTeamCountry "CZE"]
[BlackTeamCountry "SLO"]
[TimeControl "40/5400+30:1800+30"]

1. e3 {[%emt 0:01:30]} d5 {[%emt 0:01:30]} 2. b3 {[%emt 0:00:30]} e5 {[%emt 0:02:30]} 3. Bb2 {[%emt 0:00:30]} f6 {[%emt 0:00:30]} 4. d4 {[%emt 0:00:30]} exd4 {[%emt 0:03:30]} 5. exd4 {[%emt 0:00:30]} Bf5 {[%emt 0:09:30]} 6. Bd3 {[%emt 0:00:30]} Bxd3 {[%emt 0:13:30]} 7. Qxd3 {[%emt 0:01:30]} c6 {[%emt 0:01:30]} 8. Ne2 {[%emt 0:00:30]} Bd6 {[%emt 0:00:30]} 9. O-O {[%emt 0:00:30]} Ne7 {[%emt 0:00:00]} 10. c4 {[%emt 0:02:30]} O-O {[%emt 0:00:00]} 11. Ba3 {[%emt 0:00:00]} Bxa3 {[%emt 0:03:30]} 12. Nxa3 {[%emt 0:00:00]} Na6 {[%emt 0:00:30]} 13. Nc2 {[%emt 0:02:30]} Nc7 {[%emt 0:02:30]} 14. a4 {[%emt 0:01:30]} Qd7 {[%emt 0:02:30]} 15. Ne3 {[%emt 0:00:00]} Ne6 {[%emt 0:05:30]} 16. Rfe1 {[%emt 0:02:00]} Rad8 {[%emt 0:02:30]} 17. c5 {[%emt 0:02:30]} f5 {[%emt 0:02:30]} 18. Nf1 {[%emt 0:03:30]} g5 {[%emt 0:03:30]} 19. Nd2 {[%emt 0:08:30]} Ng6 {[%emt 0:01:30]} 20. h3 {[%emt 0:08:30]} Rde8 {[%emt 0:04:30]} 21. Qg3 {[%emt 0:01:30]} h5 {[%emt 0:05:30]} 22. Qc3 {[%emt 0:06:30]} g4 {[%emt 0:03:30]} 23. Kf1 {[%emt 0:02:30]} Qg7 {[%emt 0:01:30]} 24. b4 {[%emt 0:17:30]} f4 {[%emt 0:02:30]} 25. hxg4 {[%emt 0:06:30]} hxg4 {[%emt 0:02:30]} 26. Ra3 {[%emt 0:00:30]} Qh8 {[%emt 0:08:01]} 27. Kg1 {[%emt 0:02:30]} Nxd4 {[%emt 0:01:56]} 28. Qd3 {[%emt 0:05:30]} Nh4 {[%emt 0:03:04]} 29. Kf1 {[%emt 0:01:30]} Nhf5 {[%emt 0:01:57]} 30. Kg1 {[%emt 0:00:30]} g3 {[%emt 0:01:29]} 31. fxg3 {[%emt 0:03:23]} Re3 {[%emt 0:02:16]} 32. Nxd4 {[%emt 0:03:26]} Rxd3 {[%emt 0:00:30]} 33. Rxd3 {[%emt 0:00:08]} Nxd4 {[%emt 0:00:27]} 34. gxf4 {[%emt 0:00:20]} Rxf4 {[%emt 0:01:14]} 35. Re8+ {[%emt 0:00:33]} Rf8 {[%emt 0:00:08]} 36. Rg3+ {[%emt 0:02:16]} Kf7 {[%emt 0:00:24]} 37. Re1 {[%emt 0:00:25]} Nf5 {[%emt 0:00:56]} 38. Rf3 {[%emt 0:00:20]} Qd4+ {[%emt 0:00:28]} 39. Rf2 {[%emt 0:00:05]} Kg8 {[%emt 0:00:47]} 40. Nf3 {[%emt 0:00:11]} Qxb4 {[%emt 0:00:17]} 41. Re6 {[%emt 0:30:13]} Qxc5 {[%emt 0:30:49]} 42. Rg6+ {[%emt 0:00:05]} Ng7 {[%emt 0:01:48]} 43. Rg4 {[%emt 0:01:06]} b5 {[%emt 0:01:24]} 0-1

[Event "ESTCC 50 2019"]
[Site "Mali Losinj"]
[Date "2019.09.20"]
[Round "3.6"]
[White "Mohr, Georg"]
[Black "Priehoda, Vitezslav"]
[Result "1/2-1/2"]
[ECO "A14"]
[WhiteElo "2445"]
[BlackElo "2352"]
[Annotator "ChessBase"]
[PlyCount "100"]
[EventDate "2019.09.18"]
[EventType "team-tourn"]
[EventCountry "CRO"]
[SourceTitle "playchess.com"]
[Source "ChessBase"]
[SourceQuality "1"]
[WhiteTeam "Slovenia"]
[BlackTeam "Czech Republic"]
[WhiteTeamCountry "SLO"]
[BlackTeamCountry "CZE"]
[TimeControl "40/5400+30:1800+30"]

1. c4 {[%emt 0:01:30]} e6 {[%emt 0:00:30]} 2. Nf3 {[%emt 0:01:30]} Nf6 {[%emt 0:00:30]} 3. g3 {[%emt 0:00:30]} d5 {[%emt 0:00:30]} 4. Bg2 {[%emt 0:01:30]} Be7 {[%emt 0:01:30]} 5. O-O {[%emt 0:00:00]} O-O {[%emt 0:00:30]} 6. b3 {[%emt 0:02:00]} c5 {[%emt 0:03:30]} 7. e3 {[%emt 0:01:30]} Nc6 {[%emt 0:01:30]} 8. Bb2 {[%emt 0:00:30]} dxc4 {[%emt 0:12:30]} 9. bxc4 {[%emt 0:00:00]} Qb6 {[%emt 0:08:30]} 10. Qb3 {[%emt 0:10:00]} Nd7 {[%emt 0:14:30]} 11. d3 {[%emt 0:10:30]} Qxb3 {[%emt 0:00:30]} 12. axb3 {[%emt 0:00:30]} Nb4 {[%emt 0:01:30]} 13. Ne1 {[%emt 0:02:30]} Rd8 {[%emt 0:07:30]} 14. Na3 {[%emt 0:15:30]} Nb8 {[%emt 0:02:30]} 15. d4 {[%emt 0:03:30]} N8c6 {[%emt 0:05:30]} 16. Nac2 {[%emt 0:01:30]} cxd4 {[%emt 0:00:30]} 17. exd4 {[%emt 0:01:30]} Bf6 {[%emt 0:01:30]} 18. Nxb4 {[%emt 0:06:30]} Nxb4 {[%emt 0:00:30]} 19. Nf3 {[%emt 0:04:30]} Bd7 {[%emt 0:01:30]} 20. Bc3 {[%emt 0:00:30]} Nc6 {[%emt 0:02:30]} 21. Rfd1 {[%emt 0:02:30]} a6 {[%emt 0:06:30]} 22. Ne5 {[%emt 0:01:30]} Bxe5 {[%emt 0:06:30]} 23. dxe5 {[%emt 0:00:30]} Be8 {[%emt 0:00:30]} 24. f4 {[%emt 0:01:30]} Rac8 {[%emt 0:03:06]} 25. Kf2 {[%emt 0:05:30]} h6 {[%emt 0:00:32]} 26. Ke3 {[%emt 0:00:30]} Rxd1 {[%emt 0:02:45]} 27. Rxd1 {[%emt 0:00:00]} b5 {[%emt 0:00:23]} 28. Ra1 {[%emt 0:05:00]} Nb8 {[%emt 0:03:27]} 29. Bb7 {[%emt 0:08:12]} Rc7 {[%emt 0:00:12]} 30. Bxa6 {[%emt 0:00:15]} Nxa6 {[%emt 0:00:48]} 31. Rxa6 {[%emt 0:00:01]} Rc8 {[%emt 0:01:24]} 32. Kd4 {[%emt 0:00:48]} bxc4 {[%emt 0:00:10]} 33. bxc4 {[%emt 0:00:09]} Bc6 {[%emt 0:00:07]} 34. Bb4 {[%emt 0:00:21]} h5 {[%emt 0:01:44]} 35. Ra7 {[%emt 0:01:16]} Be8 {[%emt 0:00:30]} 36. Bd6 {[%emt 0:03:28]} Kh7 {[%emt 0:00:03]} 37. Rb7 {[%emt 0:02:35]} Kg6 {[%emt 0:00:40]} 38. Rb8 {[%emt 0:01:22]} Rxb8 {[%emt 0:00:08]} 39. Bxb8 {[%emt 0:00:04]} Kf5 {[%emt 0:00:00]} 40. Ke3 {[%emt 0:01:46]} Kg4 {[%emt 0:00:40]} 41. Bd6 {[%emt 0:03:13]} Kh3 {[%emt 0:13:21]} 42. Bf8 {[%emt 0:10:30]} Kxh2 {[%emt 0:04:30]} 43. Kf2 {[%emt 0:00:30]} g5 {[%emt 0:00:30]} 44. fxg5 {[%emt 0:01:30]} Bc6 {[%emt 0:00:30]} 45. Bb4 {[%emt 0:00:30]} Kh3 {[%emt 0:00:30]} 46. Be1 {[%emt 0:01:30]} Kg4 {[%emt 0:00:00]} 47. Ke3 {[%emt 0:00:30]} Kxg5 {[%emt 0:01:00]} 48. Kd4 {[%emt 0:00:00]} Kf5 {[%emt 0:06:06]} 49. Kc5 {[%emt 0:00:00]} Ba8 {[%emt 0:11:14]} 50. Kd6 {[%emt 0:08:16]} f6 {[%emt 0:00:07]} 1/2-1/2

[Event "ESTCC 50 2019"]
[Site "Mali Losinj"]
[Date "2019.09.20"]
[Round "3.7"]
[White "Vokac, Marek"]
[Black "Mencinger, Vojko"]
[Result "1-0"]
[ECO "E12"]
[WhiteElo "2332"]
[BlackElo "2332"]
[Annotator "NA"]
[PlyCount "54"]
[EventDate "2019.09.18"]
[EventType "team-tourn"]
[EventCountry "CRO"]
[SourceTitle "playchess.com"]
[Source "ChessBase"]
[SourceQuality "1"]
[WhiteTeam "Czech Republic"]
[BlackTeam "Slovenia"]
[WhiteTeamCountry "CZE"]
[BlackTeamCountry "SLO"]
[TimeControl "40/5400+30:1800+30"]

1. d4 {[%emt 0:00:30]} Nf6 {[%emt 0:01:30]} 2. c4 {[%emt 0:00:30]} e6 {[%emt 0:00:30]} 3. Nf3 {[%emt 0:00:30]} b6 {[%emt 0:00:30]} 4. Bf4 {[%emt 0:00:30]} Bb4+ {[%emt 0:01:30]} 5. Nfd2 {[%emt 0:00:30]} Nh5 {[%emt 0:01:30]} 6. Be5 {[%emt 0:15:30]} f6 {[%emt 0:12:30]} 7. e3 {[%emt 0:01:30]} g6 {[%emt 0:00:30]} 8. Bg3 {[%emt 0:00:30]} Bb7 {[%emt 0:05:30]} 9. Bh4 {[%emt 0:07:30]} Ng7 {[%emt 0:00:30]} 10. f3 {[%emt 0:00:30]} Nf5 {[%emt 0:12:30]} 11. Bf2 {[%emt 0:02:30]} d5 {[%emt 0:00:30]} 12. Qa4+ {[%emt 0:00:30]} Nc6 {[%emt 0:00:30]} 13. cxd5 {[%emt 0:00:30]} exd5 {[%emt 0:00:00]} 14. Bd3 {[%emt 0:04:30]} Qd7 {[%emt 0:02:00]} 15. O-O {[%emt 0:01:30]} O-O-O {[%emt 0:11:30]} 16. Rc1 {[%emt 0:03:30]} Bxd2 {[%emt 0:02:30]} 17. Nxd2 {[%emt 0:00:30]} Nd6 {[%emt 0:00:00]} 18. Rc3 {[%emt 0:04:30]} Ne5 {[%emt 0:07:00]} 19. Qxd7+ {[%emt 0:01:30]} Nxd7 {[%emt 0:00:30]} 20. Rac1 {[%emt 0:04:30]} c5 {[%emt 0:00:30]} 21. Bg3 {[%emt 0:00:30]} Kc7 {[%emt 0:02:30]} 22. b4 {[%emt 0:01:30]} Kc6 {[%emt 0:00:30]} 23. bxc5 {[%emt 0:02:30]} bxc5 {[%emt 0:00:00]} 24. dxc5 {[%emt 0:05:30]} Nf5 {[%emt 0:00:00]} 25. Bxf5 {[%emt 0:00:00]} gxf5 {[%emt 0:00:30]} 26. Nb3 {[%emt 0:00:00]} Ne5 {[%emt 0:00:30]} 27. Nd4+ {[%emt 0:00:30]} Kc7 {[%emt 0:00:00]} 1-0

[Event "ESTCC 50 2019"]
[Site "Mali Losinj"]
[Date "2019.09.20"]
[Round "3.8"]
[White "Plesec, Damjan"]
[Black "Spacek, Petr"]
[Result "1/2-1/2"]
[ECO "D53"]
[WhiteElo "2216"]
[BlackElo "2352"]
[Annotator "NA"]
[PlyCount "90"]
[EventDate "2019.09.18"]
[EventType "team-tourn"]
[EventCountry "CRO"]
[SourceTitle "playchess.com"]
[Source "ChessBase"]
[SourceQuality "1"]
[WhiteTeam "Slovenia"]
[BlackTeam "Czech Republic"]
[WhiteTeamCountry "SLO"]
[BlackTeamCountry "CZE"]
[TimeControl "40/5400+30:1800+30"]

1. Nf3 {[%emt 0:01:30]} Nf6 {[%emt 0:00:30]} 2. c4 {[%emt 0:00:30]} e6 {[%emt 0:03:30]} 3. Nc3 {[%emt 0:00:30]} d5 {[%emt 0:00:00]} 4. d4 {[%emt 0:00:30]} Be7 {[%emt 0:01:00]} 5. Bg5 {[%emt 0:01:30]} Nbd7 {[%emt 0:02:30]} 6. e3 {[%emt 0:00:30]} h6 {[%emt 0:00:30]} 7. Bh4 {[%emt 0:00:30]} Ne4 {[%emt 0:01:30]} 8. Bxe7 {[%emt 0:03:30]} Qxe7 {[%emt 0:00:30]} 9. cxd5 {[%emt 0:04:30]} Nxc3 {[%emt 0:02:30]} 10. bxc3 {[%emt 0:00:30]} exd5 {[%emt 0:00:30]} 11. Qb3 {[%emt 0:09:30]} c6 {[%emt 0:01:30]} 12. a4 {[%emt 0:09:30]} O-O {[%emt 0:04:30]} 13. Bd3 {[%emt 0:06:30]} b6 {[%emt 0:06:30]} 14. O-O {[%emt 0:02:30]} Bb7 {[%emt 0:07:30]} 15. c4 {[%emt 0:06:30]} dxc4 {[%emt 0:18:30]} 16. Bxc4 {[%emt 0:03:30]} a6 {[%emt 0:05:30]} 17. Rfe1 {[%emt 0:12:30]} b5 {[%emt 0:02:30]} 18. axb5 {[%emt 0:09:30]} cxb5 {[%emt 0:01:30]} 19. Bd5 {[%emt 0:00:30]} Nf6 {[%emt 0:01:30]} 20. Bxb7 {[%emt 0:00:30]} Qxb7 {[%emt 0:00:30]} 21. Ne5 {[%emt 0:02:30]} a5 {[%emt 0:07:30]} 22. Nd3 {[%emt 0:00:30]} Qd5 {[%emt 0:02:30]} 23. Nc5 {[%emt 0:06:02]} Rfb8 {[%emt 0:06:30]} 24. Reb1 {[%emt 0:01:44]} Qxb3 {[%emt 0:03:53]} 25. Nxb3 {[%emt 0:00:31]} a4 {[%emt 0:00:27]} 26. Nc5 {[%emt 0:00:03]} Nd5 {[%emt 0:00:28]} 27. Ra3 {[%emt 0:01:22]} f5 {[%emt 0:01:51]} 28. Kf1 {[%emt 0:00:49]} Nc7 {[%emt 0:04:39]} 29. Ke2 {[%emt 0:03:22]} Rd8 {[%emt 0:00:59]} 30. Nd3 {[%emt 0:01:55]} Rac8 {[%emt 0:03:15]} 31. Kd2 {[%emt 0:01:59]} Rd7 {[%emt 0:01:39]} 32. Rc3 {[%emt 0:03:02]} Ra8 {[%emt 0:01:19]} 33. Ra3 {[%emt 0:00:23]} Re8 {[%emt 0:00:59]} 34. h4 {[%emt 0:03:17]} g5 {[%emt 0:00:38]} 35. hxg5 {[%emt 0:00:15]} hxg5 {[%emt 0:00:01]} 36. g3 {[%emt 0:00:14]} Kg7 {[%emt 0:00:15]} 37. Nb4 {[%emt 0:02:18]} f4 {[%emt 0:03:03]} 38. gxf4 {[%emt 0:00:06]} gxf4 {[%emt 0:00:00]} 39. Rg1+ {[%emt 0:00:42]} Kf6 {[%emt 0:00:36]} 40. Rc3 {[%emt 0:01:45]} Nd5 {[%emt 0:02:01]} 41. Rc6+ {[%emt 0:31:48]} Re6 {[%emt 0:30:54]} 42. Nxd5+ {[%emt 0:00:22]} Rxd5 {[%emt 0:00:00]} 43. Rxe6+ {[%emt 0:00:00]} Kxe6 {[%emt 0:00:00]} 44. Kd3 {[%emt 0:00:00]} fxe3 {[%emt 0:00:00]} 45. fxe3 {[%emt 0:00:00]} Rh5 {[%emt 0:00:00]} 1/2-1/2

[Event "ESTCC 50 2019"]
[Site "Mali Losinj"]
[Date "2019.09.20"]
[Round "3.9"]
[White "Sulc, Damir"]
[Black "Ponce Navalon, Jose"]
[Result "0-1"]
[ECO "C82"]
[WhiteElo "2207"]
[BlackElo "2024"]
[Annotator "NA"]
[PlyCount "76"]
[EventDate "2019.09.18"]
[EventType "team-tourn"]
[EventCountry "CRO"]
[SourceTitle "playchess.com"]
[Source "ChessBase"]
[SourceQuality "1"]
[WhiteTeam "Croatia"]
[BlackTeam "Spain"]
[WhiteTeamCountry "CRO"]
[BlackTeamCountry "ESP"]
[TimeControl "40/5400+30:1800+30"]

1. e4 {[%emt 0:00:30]} e5 {[%emt 0:00:30]} 2. Nf3 {[%emt 0:00:00]} Nc6 {[%emt 0:00:00]} 3. Bb5 {[%emt 0:00:00]} a6 {[%emt 0:00:00]} 4. Ba4 {[%emt 0:00:30]} Nf6 {[%emt 0:00:30]} 5. O-O {[%emt 0:00:30]} Nxe4 {[%emt 0:00:30]} 6. d4 {[%emt 0:02:30]} b5 {[%emt 0:00:00]} 7. Bb3 {[%emt 0:00:30]} d5 {[%emt 0:00:00]} 8. dxe5 {[%emt 0:00:00]} Be6 {[%emt 0:00:30]} 9. c3 {[%emt 0:02:00]} Bc5 {[%emt 0:01:30]} 10. Nbd2 {[%emt 0:03:30]} Bf5 {[%emt 0:11:30]} 11. Bc2 {[%emt 0:07:30]} Bg6 {[%emt 0:01:30]} 12. Nb3 {[%emt 0:02:30]} Bb6 {[%emt 0:00:30]} 13. Nbd4 {[%emt 0:00:00]} Qd7 {[%emt 0:08:30]} 14. a4 {[%emt 0:06:00]} O-O {[%emt 0:01:30]} 15. axb5 {[%emt 0:23:30]} Nxd4 {[%emt 0:06:30]} 16. Nxd4 {[%emt 0:03:30]} axb5 {[%emt 0:00:30]} 17. Rxa8 {[%emt 0:00:30]} Rxa8 {[%emt 0:00:00]} 18. f3 {[%emt 0:00:30]} Nc5 {[%emt 0:03:00]} 19. Be3 {[%emt 0:01:30]} Re8 {[%emt 0:07:30]} 20. b4 {[%emt 0:02:30]} Na4 {[%emt 0:01:30]} 21. Bxa4 {[%emt 0:07:30]} bxa4 {[%emt 0:00:30]} 22. f4 {[%emt 0:00:00]} Be4 {[%emt 0:07:30]} 23. Qe2 {[%emt 0:00:00]} a3 {[%emt 0:10:30]} 24. Ra1 {[%emt 0:03:30]} Ra8 {[%emt 0:03:30]} 25. h3 {[%emt 0:08:30]} Qa4 {[%emt 0:12:30]} 26. Qg4 {[%emt 0:04:30]} Qe8 {[%emt 0:08:52]} 27. Qe2 {[%emt 0:01:30]} f6 {[%emt 0:00:35]} 28. exf6 {[%emt 0:04:37]} gxf6 {[%emt 0:00:02]} 29. c4 {[%emt 0:00:22]} dxc4 {[%emt 0:01:32]} 30. Qxc4+ {[%emt 0:02:06]} Qf7 {[%emt 0:00:17]} 31. Qc3 {[%emt 0:01:20]} Qd5 {[%emt 0:00:49]} 32. Kh2 {[%emt 0:03:36]} a2 {[%emt 0:00:52]} 33. Ne2 {[%emt 0:02:17]} Bxe3 {[%emt 0:05:05]} 34. Qxe3 {[%emt 0:00:06]} Qd3 {[%emt 0:00:08]} 35. Qf2 {[%emt 0:03:24]} Qd2 {[%emt 0:04:16]} 36. Qg3+ {[%emt 0:00:13]} Kh8 {[%emt 0:01:02]} 37. Nc3 {[%emt 0:04:08]} Bb7 {[%emt 0:00:33]} 38. Rd1 {[%emt 0:01:48]} Qxd1 {[%emt 0:00:16]} 0-1

[Event "ESTCC 50 2019"]
[Site "Mali Losinj"]
[Date "2019.09.20"]
[Round "3.10"]
[White "Pastor Alonso De Prado, Alberto"]
[Black "Dusper, Hrvoje"]
[Result "1-0"]
[ECO "B01"]
[WhiteElo "2010"]
[BlackElo "2221"]
[Annotator "NA"]
[PlyCount "71"]
[EventDate "2019.09.18"]
[EventType "team-tourn"]
[EventCountry "CRO"]
[SourceTitle "playchess.com"]
[Source "ChessBase"]
[SourceQuality "1"]
[WhiteTeam "Spain"]
[BlackTeam "Croatia"]
[WhiteTeamCountry "ESP"]
[BlackTeamCountry "CRO"]
[TimeControl "40/5400+30:1800+30"]

1. e4 {[%emt 0:00:30]} d5 {[%emt 0:00:30]} 2. exd5 {[%emt 0:00:00]} Nf6 {[%emt 0:00:30]} 3. Nf3 {[%emt 0:00:00]} Bg4 {[%emt 0:01:30]} 4. h3 {[%emt 0:00:30]} Bh5 {[%emt 0:02:30]} 5. d4 {[%emt 0:06:30]} Qxd5 {[%emt 0:12:30]} 6. Nc3 {[%emt 0:00:30]} Qa5 {[%emt 0:06:30]} 7. g4 {[%emt 0:00:30]} Bg6 {[%emt 0:00:30]} 8. Ne5 {[%emt 0:01:30]} c6 {[%emt 0:02:30]} 9. h4 {[%emt 0:03:30]} Be4 {[%emt 0:09:30]} 10. Nc4 {[%emt 0:00:30]} Qc7 {[%emt 0:04:30]} 11. Nxe4 {[%emt 0:00:30]} Nxe4 {[%emt 0:00:00]} 12. Qf3 {[%emt 0:00:00]} Nd6 {[%emt 0:04:00]} 13. Bf4 {[%emt 0:00:00]} Nd7 {[%emt 0:01:30]} 14. O-O-O {[%emt 0:02:30]} Nf6 {[%emt 0:04:30]} 15. g5 {[%emt 0:20:30]} Nd5 {[%emt 0:00:30]} 16. Bd2 {[%emt 0:01:30]} Nxc4 {[%emt 0:01:30]} 17. Bxc4 {[%emt 0:00:30]} e6 {[%emt 0:00:30]} 18. h5 {[%emt 0:00:30]} O-O-O {[%emt 0:01:30]} 19. Kb1 {[%emt 0:05:30]} c5 {[%emt 0:13:30]} 20. dxc5 {[%emt 0:02:30]} Bxc5 {[%emt 0:01:30]} 21. Bc1 {[%emt 0:12:30]} Nb6 {[%emt 0:12:07]} 22. Bb3 {[%emt 0:00:30]} Rxd1 {[%emt 0:07:49]} 23. Rxd1 {[%emt 0:00:00]} Re8 {[%emt 0:00:19]} 24. a4 {[%emt 0:03:00]} a5 {[%emt 0:02:22]} 25. Qc3 {[%emt 0:04:30]} g6 {[%emt 0:03:30]} 26. h6 {[%emt 0:01:30]} Bxf2 {[%emt 0:03:38]} 27. Qxc7+ {[%emt 0:00:30]} Kxc7 {[%emt 0:00:15]} 28. Rf1 {[%emt 0:00:30]} Bc5 {[%emt 0:01:54]} 29. Rxf7+ {[%emt 0:00:00]} Re7 {[%emt 0:00:09]} 30. Bxe6 {[%emt 0:00:00]} Nd7 {[%emt 0:01:12]} 31. Bf4+ {[%emt 0:02:30]} Kd8 {[%emt 0:00:53]} 32. Rxe7 {[%emt 0:03:30]} Bxe7 {[%emt 0:00:17]} 33. Bg8 {[%emt 0:00:00]} Nf8 {[%emt 0:00:10]} 34. Ka2 {[%emt 0:01:00]} Kd7 {[%emt 0:00:24]} 35. Bd2 {[%emt 0:01:30]} Ne6 {[%emt 0:00:31]} 36. Bxh7 {[%emt 0:00:00]} 1-0